bitfinex-derivatives/quotes_BTCF0:USTF0_20241029
["timestamp","ask_amount","ask_price","bid_price","bid_amount"]
[1730219693882,0.73962367,72601.0,72600.0,0.01]
[1730219696578,0.75397229,72601.0,72600.0,0.01]
[1730219698682,0.75397229,72601.0,72586.0,0.068893]
[1730219698683,0.068891,72589.0,72586.0,0.05443441]
[1730219698880,0.068893,72588.0,72585.0,0.12332841]
[1730219699084,0.10574467,72591.0,72584.0,0.05443441]
[1730219699384,0.068894,72586.0,72584.0,0.05443441]
[1730219699683,0.2092,72585.0,72583.0,0.05443441]
[1730219700275,0.2092,72585.0,72584.0,0.10574467]
[1730219700480,0.278095,72585.0,72584.0,0.16048095]
[1730219700682,0.278095,72585.0,72584.0,0.05473628]
[1730219700877,0.278095,72585.0,72582.0,0.05473628]
[1730219700878,0.2092,72585.0,72582.0,0.05473628]
[1730219701082,0.068897,72582.0,72581.0,0.41553628]
[1730219701382,0.068901,72579.0,72578.0,0.05473628]
[1730219701592,0.068901,72579.0,72577.0,0.10574467]
[1730219702694,0.069901,72579.0,72577.0,0.10574467]
[1730219702889,0.068901,72578.0,72577.0,0.10574467]
[1730219703397,0.001,72579.0,72577.0,0.10574467]
[1730219703779,0.068901,72578.0,72577.0,0.10574467]
[1730219703984,0.001,72579.0,72574.0,0.10781128]
[1730219704189,0.068904,72576.0,72574.0,0.10781128]
[1730219704693,0.070901,72579.0,72574.0,0.10781128]
[1730219704993,0.069901,72578.0,72574.0,0.10781128]
[1730219705379,0.068902,72577.0,72574.0,0.10781128]
[1730219705592,0.001,72578.0,72574.0,0.10781128]
[1730219705797,0.429701,72579.0,72577.0,0.10574467]
[1730219705984,0.430701,72579.0,72577.0,0.10574467]
[1730219706592,0.3618,72579.0,72578.0,0.068901]
[1730219707685,0.3618,72579.0,72574.0,0.00206661]
[1730219708092,0.068903,72576.0,72574.0,0.00206661]
[1730219708295,0.068903,72576.0,72575.0,0.10574467]
[1730219708897,0.3628,72579.0,72575.0,0.10574467]
[1730219709196,0.3618,72579.0,72575.0,0.10574467]
[1730219709394,0.3608,72579.0,72575.0,0.17464867]
[1730219709693,0.3618,72579.0,72575.0,0.17464867]
[1730219709895,0.001,72576.0,72575.0,0.17464867]
[1730219711687,0.3628,72579.0,72578.0,0.068901]
[1730219712089,0.3608,72594.0,72578.0,0.58800567]
[1730219712298,0.3608,72617.0,72587.0,0.46654467]
[1730219712503,0.3608,72617.0,72614.0,0.10574467]
[1730219712794,0.3608,72617.0,72610.0,0.10574467]
[1730219712795,0.068866,72615.0,72610.0,0.10574467]
[1730219712994,0.37499377,72617.0,72614.0,0.10574467]
[1730219712995,0.3608,72617.0,72614.0,0.10574467]
[1730219713191,0.07599159,72616.0,72614.0,0.10574467]
[1730219713388,0.0337226,72615.0,72610.0,0.10574467]
[1730219713695,0.0337226,72614.0,72610.0,0.10574467]
[1730219713896,0.3608,72617.0,72610.0,0.10574467]
[1730219714095,0.3608,72611.0,72602.0,0.1258]
[1730219714301,0.068875,72606.0,72601.0,0.3608]
[1730219714497,0.195,72605.0,72601.0,0.3608]
[1730219714698,0.195,72605.0,72599.0,0.10574467]
[1730219715193,0.10574467,72603.0,72595.0,0.10574467]
[1730219715500,0.03372603,72602.0,72595.0,0.10574467]
[1730219715701,0.3608,72596.0,72595.0,0.10574467]
[1730219716003,0.06889,72590.0,72582.0,0.10574467]
[1730219716191,0.3608,72596.0,72589.0,0.10574467]
[1730219716496,0.03373256,72595.0,72590.0,0.068889]
[1730219716698,0.3608,72596.0,72594.0,0.10574467]
[1730219719194,0.3628,72596.0,72594.0,0.10574467]
[1730219720098,0.431684,72596.0,72594.0,0.10574467]
[1730219720293,0.431684,72596.0,72579.0,0.48656]
[1730219720294,0.10574467,72595.0,72574.0,0.04295845]
[1730219720494,0.10574467,72595.0,72577.0,0.10574467]
[1730219720495,0.3608,72582.0,72577.0,0.10574467]
[1730219720702,0.3608,72588.0,72581.0,0.10574467]
[1730219720905,0.068895,72585.0,72577.0,0.068902]
[1730219721293,0.2024,72595.0,72574.0,0.01638479]
[1730219721294,0.06889,72590.0,72579.0,0.4297]
[1730219721604,0.06889,72590.0,72586.0,0.10574467]
[1730219721605,0.42969,72590.0,72586.0,0.10574467]
[1730219721809,0.001,72588.0,72586.0,0.10574467]
[1730219722103,0.001,72588.0,72581.0,0.11174467]
[1730219722308,0.068892,72588.0,72581.0,0.10574467]
[1730219722498,0.001,72585.0,72581.0,0.10574467]
[1730219722699,0.068898,72581.0,72579.0,0.004]
[1730219722999,0.068898,72581.0,72577.0,0.01]
[1730219723000,0.0689,72579.0,72577.0,0.01]
[1730219723304,0.17464567,72578.0,72577.0,0.01]
[1730219723502,0.37674567,72578.0,72577.0,0.01]
[1730219723904,0.37674567,72578.0,72574.0,0.00206661]
[1730219723905,0.30784467,72578.0,72574.0,0.00206661]
[1730219724106,0.068904,72575.0,72574.0,0.00206661]
[1730219724503,0.002,72588.0,72574.0,0.00206661]
[1730219724504,0.3608,72600.0,72574.0,0.52361128]
[1730219724706,0.5376,72714.0,72604.0,0.068876]
[1730219724707,0.068848,72634.0,72604.0,0.068876]
[1730219724907,0.00206599,72661.0,72604.0,0.068876]
[1730219724908,0.10574467,72640.0,72633.0,0.3608]
[1730219725101,0.068829,72654.0,72639.0,0.3608]
[1730219725301,0.2139,72657.0,72632.0,0.068849]
[1730219725302,0.068835,72648.0,72647.0,0.3608]
[1730219725503,0.10254841,72648.0,72647.0,0.3608]
[1730219725704,0.10254841,72648.0,72645.0,0.3608]
[1730219725705,0.44667001,72648.0,72645.0,0.3608]
[1730219725914,0.44667001,72648.0,72616.0,0.12576]
[1730219725915,0.429637,72646.0,72630.0,0.3608]
[1730219726106,0.10254801,72645.0,72630.0,0.3608]
[1730219726320,0.03371001,72644.0,72630.0,0.3608]
[1730219726525,0.10574467,72631.0,72630.0,0.3608]
[1730219726717,0.10574467,72631.0,72624.0,0.3608]
[1730219726718,0.15875367,72631.0,72624.0,0.3608]
[1730219726913,0.15875367,72625.0,72624.0,0.3608]
[1730219727129,0.15875367,72630.0,72624.0,0.3608]
[1730219728318,0.15875367,72630.0,72624.0,0.3658]
[1730219728718,0.15875367,72626.0,72624.0,0.3658]
[1730219728921,0.15875367,72626.0,72624.0,0.3708]
[1730219729627,0.15875367,72631.0,72624.0,0.3708]
[1730219730329,0.15875367,72631.0,72624.0,0.3658]
[1730219730627,0.15875367,72631.0,72624.0,0.3748]
[1730219730628,0.001,72626.0,72624.0,0.3748]
[1730219730828,0.001,72626.0,72624.0,0.3698]
[1730219731029,0.002,72626.0,72624.0,0.3788]
[1730219731226,0.001,72626.0,72624.0,0.3738]
[1730219731434,0.001,72626.0,72625.0,0.068857]
[1730219731621,0.15875367,72631.0,72625.0,0.068857]
[1730219731622,0.03371667,72630.0,72625.0,0.068857]
[1730219731823,0.03371667,72629.0,72626.0,0.068856]
[1730219732023,0.03371667,72628.0,72626.0,0.068856]
[1730219732332,0.56145367,72636.0,72626.0,0.068856]
[1730219732531,0.03371572,72635.0,72626.0,0.068856]
[1730219732728,0.03371572,72634.0,72626.0,0.068856]
[1730219732937,0.15875367,72631.0,72624.0,0.3788]
[1730219733123,0.15875367,72625.0,72624.0,0.3788]
[1730219733529,0.37235367,72630.0,72624.0,0.447657]
[1730219733734,0.03371688,72629.0,72626.0,0.006]
[1730219733937,0.03371688,72628.0,72626.0,0.006]
[1730219734129,0.001,72629.0,72628.0,0.068854]
[1730219734831,0.001,72629.0,72628.0,0.481934]
[1730219735033,0.2083,72651.0,72628.0,0.481934]
[1730219735034,0.15875367,72653.0,72628.0,0.481934]
[1730219735231,0.00206599,72661.0,72647.0,0.51955367]
[1730219735427,0.00206599,72661.0,72646.0,0.068836]
[1730219735428,0.07594996,72660.0,72658.0,0.15875367]
[1730219735630,0.07594996,72660.0,72659.0,0.068824]
[1730219736233,0.07594996,72660.0,72654.0,0.15875367]
[1730219736433,0.07594996,72660.0,72655.0,0.068827]
[1730219736650,0.07594996,72660.0,72656.0,0.068826]
[1730219736940,0.07594996,72660.0,72658.0,0.15875367]
[1730219737141,0.00606599,72661.0,72658.0,0.15875367]
[1730219737142,0.03370375,72659.0,72658.0,0.15875367]
[1730219737843,0.03370375,72659.0,72658.0,0.22757867]
[1730219738137,0.03370375,72659.0,72658.0,0.15875367]
[1730219738841,0.008,72660.0,72658.0,0.15875367]
[1730219739242,0.004,72659.0,72658.0,0.15875367]
[1730219739643,0.008,72659.0,72658.0,0.15875367]
[1730219740043,0.008,72659.0,72658.0,0.22757867]
[1730219741338,0.008,72659.0,72653.0,0.3194336]
[1730219742348,0.004,72659.0,72658.0,0.009]
[1730219742843,0.068824,72659.0,72658.0,0.009]
[1730219743145,0.068824,72659.0,72658.0,0.018]
[1730219743844,0.068824,72659.0,72658.0,0.009]
[1730219744044,0.069824,72659.0,72658.0,0.009]
[1730219744245,0.069824,72659.0,72658.0,0.007]
[1730219744552,0.22857767,72659.0,72658.0,0.014]
[1730219745547,0.15975367,72659.0,72646.0,0.3608]
[1730219745752,0.068836,72647.0,72646.0,0.3608]
[1730219746743,0.2089,72653.0,72646.0,0.3678]
[1730219746941,0.068831,72652.0,72646.0,0.3678]
[1730219747146,0.2089,72653.0,72649.0,0.15875367]
[1730219747544,0.3608,72657.0,72649.0,0.15875367]
[1730219747751,0.001,72659.0,72656.0,0.15875367]
[1730219747937,0.001,72659.0,72658.0,0.429625]
[1730219748250,0.3608,72672.0,72664.0,0.068819]
[1730219748448,0.429613,72672.0,72670.0,0.15875367]
[1730219748752,0.19411093,72671.0,72670.0,0.04857988]
[1730219750141,0.068816,72668.0,72666.0,0.51955367]
[1730219751448,0.004,72668.0,72666.0,0.51955367]
[1730219751649,0.068822,72662.0,72660.0,0.15875367]
[1730219751849,0.3688,72668.0,72658.0,0.37507683]
[1730219752048,0.068824,72659.0,72658.0,0.3608]
[1730219752353,0.22757767,72659.0,72658.0,0.3608]
[1730219752651,0.068824,72659.0,72658.0,0.3608]
[1730219753855,0.07594663,72659.0,72655.0,0.0579733]
[1730219754053,0.068827,72656.0,72652.0,0.01384112]
[1730219754354,0.068827,72656.0,72650.0,0.3608]
[1730219754355,0.14477563,72655.0,72650.0,0.3608]
[1730219754657,0.068829,72655.0,72650.0,0.3608]
[1730219755154,0.01390286,72659.0,72650.0,0.37481512]
[1730219755356,0.001,72656.0,72652.0,0.008]
[1730219755746,0.06883,72653.0,72652.0,0.008]
[1730219756856,0.06883,72653.0,72652.0,0.004]
[1730219757555,0.06883,72653.0,72652.0,0.005]
[1730219758344,0.48175,72653.0,72652.0,0.005]
[1730219758555,0.48275,72653.0,72652.0,0.002]
[1730219759155,0.48275,72653.0,72643.0,0.0020647]
[1730219759156,0.068839,72644.0,72643.0,0.0020647]
[1730219760553,0.22759267,72644.0,72643.0,0.0020647]
[1730219760759,0.22859267,72644.0,72643.0,0.0100647]
[1730219760960,0.22959267,72644.0,72643.0,0.0170647]
[1730219761146,0.58692226,72644.0,72625.0,0.3608]
[1730219761346,0.08504759,72644.0,72643.0,0.007]
[1730219761658,0.068856,72626.0,72625.0,0.3608]
[1730219761849,0.22760967,72626.0,72625.0,0.3608]
[1730219762051,0.30358785,72626.0,72625.0,0.3608]
[1730219762259,0.14483418,72626.0,72625.0,0.3608]
[1730219762552,0.07597818,72626.0,72625.0,0.3608]
[1730219762857,0.10257265,72626.0,72625.0,0.3608]
[1730219763246,0.10257265,72626.0,72625.0,0.3658]
[1730219763552,0.62212632,72626.0,72625.0,0.005]
[1730219763754,0.068859,72622.0,72621.0,0.0020655]
[1730219763954,0.10257565,72622.0,72621.0,0.0020655]
[1730219764553,0.10257828,72622.0,72621.0,0.0020655]
[1730219764758,0.14484643,72622.0,72621.0,0.0020655]
[1730219764958,0.3046001,72622.0,72621.0,0.0070655]
[1730219765162,0.26233195,72622.0,72621.0,0.0070655]
[1730219765661,0.30460158,72622.0,72621.0,0.0070655]
[1730219765861,0.31869733,72622.0,72621.0,0.0070655]
[1730219766262,0.31969733,72622.0,72621.0,0.0120655]
[1730219766555,0.2774277,72622.0,72621.0,0.0120655]
[1730219766757,0.31969705,72622.0,72621.0,0.0120655]
[1730219767158,0.2774277,72622.0,72621.0,0.0120655]
[1730219767662,0.2774277,72622.0,72621.0,0.01]
[1730219768255,0.3196986,72622.0,72621.0,0.01]
[1730219768450,0.2774277,72622.0,72621.0,0.01]
[1730219768867,0.2092539,72622.0,72621.0,0.01]
[1730219770661,0.78112757,72622.0,72621.0,0.01]
[1730219770862,0.90608757,72622.0,72621.0,0.01]
[1730219771161,0.068865,72617.0,72607.0,0.04071474]
[1730219771362,0.22762667,72608.0,72606.0,0.04071474]
[1730219771555,0.15875367,72608.0,72605.0,0.04071474]
[1730219772165,0.15875367,72608.0,72604.0,0.04071474]
[1730219772473,0.068877,72604.0,72599.0,0.05441196]
[1730219772762,0.068878,72602.0,72600.0,0.04070488]
[1730219772963,0.068881,72599.0,72598.0,0.04070488]
[1730219773168,0.429679,72601.0,72594.0,0.04070488]
[1730219773169,0.068883,72597.0,72594.0,0.04070488]
[1730219773357,0.22763667,72597.0,72592.0,0.04070488]
[1730219773554,0.22763667,72597.0,72593.0,0.04070488]
[1730219773760,0.22763667,72597.0,72592.0,0.04070488]
[1730219773959,0.22763667,72597.0,72595.0,0.04070293]
[1730219774155,0.22763667,72597.0,72589.0,0.40150293]
[1730219774461,0.35263667,72597.0,72584.0,0.04070293]
[1730219774760,0.35263667,72597.0,72583.0,0.068896]
[1730219775067,1.12667667,72597.0,72583.0,0.068896]
[1730219775564,0.068898,72581.0,72580.0,0.04070293]
[1730219775767,0.068902,72577.0,72576.0,0.3608]
[1730219775968,0.068902,72577.0,72573.0,0.05441196]
[1730219775969,0.068905,72574.0,72573.0,0.068905]
[1730219776269,0.15875367,72577.0,72572.0,0.04065706]
[1730219776569,0.068906,72573.0,72571.0,0.04065706]
[1730219776761,0.068906,72573.0,72570.0,0.068909]
[1730219777472,0.068906,72573.0,72569.0,0.15875367]
[1730219778665,0.001,72573.0,72569.0,0.15875367]
[1730219778967,0.002,72573.0,72569.0,0.15875367]
[1730219779372,0.001,72573.0,72569.0,0.22766267]
[1730219779558,0.001,72573.0,72569.0,0.15875367]
[1730219779559,0.00196,72573.0,72569.0,0.15875367]
[1730219779760,0.00196,72573.0,72571.0,0.068907]
[1730219780272,0.00196,72573.0,72569.0,0.15875367]
[1730219780973,0.00196,72573.0,72571.0,0.068907]
[1730219781270,0.00196,72573.0,72571.0,0.068908]
[1730219781567,0.002,72573.0,72571.0,0.068908]
[1730219781772,0.31943864,72584.0,72572.0,0.3608]
[1730219781966,0.31943864,72584.0,72583.0,0.15875367]
[1730219782160,0.00206748,72589.0,72583.0,0.15875367]
[1730219782367,0.3608,72597.0,72588.0,0.15875367]
[1730219782576,0.3608,72597.0,72596.0,0.15875367]
[1730219783069,0.3608,72597.0,72596.0,0.22763767]
[1730219783474,0.3608,72605.0,72597.0,0.068883]
[1730219783671,0.3608,72605.0,72604.0,0.15875367]
[1730219784175,0.3608,72605.0,72604.0,0.22676862]
[1730219784362,0.3608,72605.0,72604.0,0.26150198]
[1730219784563,0.3668,72605.0,72604.0,0.26150198]
[1730219784769,0.006,72605.0,72604.0,0.26150198]
[1730219785071,0.074876,72605.0,72604.0,0.10274831]
[1730219785665,0.15875367,72607.0,72604.0,0.10274831]
[1730219785868,0.068875,72606.0,72605.0,0.06780443]
[1730219786173,0.068877,72604.0,72603.0,0.06780443]
[1730219786374,0.012,72605.0,72602.0,0.06782343]
[1730219786563,0.080876,72605.0,72604.0,0.06786438]
[1730219786761,0.074876,72605.0,72604.0,0.06786438]
[1730219786965,0.006,72605.0,72604.0,0.22661805]
[1730219787171,0.068876,72605.0,72604.0,0.26142632]
[1730219787476,0.068876,72605.0,72604.0,0.10267265]
[1730219787770,0.073876,72605.0,72604.0,0.10267265]
[1730219787977,0.073876,72605.0,72603.0,0.06787144]
[1730219788273,0.073876,72605.0,72603.0,0.06788461]
[1730219788479,0.073876,72605.0,72604.0,0.10282594]
[1730219788783,0.078876,72605.0,72604.0,0.10282594]
[1730219789075,0.01,72605.0,72604.0,0.10282594]
[1730219789263,0.01,72605.0,72604.0,0.33045661]
[1730219789463,0.009,72605.0,72604.0,0.33045661]
[1730219789872,0.004,72605.0,72604.0,0.33045661]
[1730219790077,0.009,72605.0,72604.0,0.33045661]
[1730219790775,0.009,72605.0,72604.0,0.26157961]
[1730219790776,0.068876,72605.0,72604.0,0.26157961]
[1730219791580,0.068876,72605.0,72604.0,0.38360203]
[1730219791878,0.073876,72605.0,72603.0,0.0544032]
[1730219792277,0.073876,72605.0,72604.0,0.0544032]
[1730219792477,0.005,72605.0,72604.0,0.0544032]
[1730219792681,0.005,72605.0,72601.0,0.068879]
[1730219792682,0.005,72605.0,72603.0,0.0544032]
[1730219792978,0.005,72605.0,72604.0,0.15875367]
[1730219793276,0.009,72605.0,72604.0,0.21315687]
[1730219793470,0.0549,72612.0,72611.0,0.06887]
[1730219793670,0.3608,72635.0,72611.0,0.06887]
[1730219793671,0.05696635,72620.0,72611.0,0.51955367]
[1730219793880,0.05696635,72620.0,72619.0,0.22761567]
[1730219794177,0.3608,72635.0,72619.0,0.26002178]
[1730219794474,0.3608,72635.0,72634.0,0.15875367]
[1730219794684,0.3608,72635.0,72634.0,0.22760167]
[1730219794873,0.068841,72642.0,72634.0,0.15875367]
[1730219795067,0.068841,72642.0,72637.0,0.04077617]
[1730219795276,0.068843,72640.0,72636.0,0.04077617]
[1730219795475,0.15875367,72637.0,72632.0,0.05437826]
[1730219795677,0.15875367,72637.0,72631.0,0.3608]
[1730219795878,0.22760367,72632.0,72631.0,0.4151457]
[1730219796073,0.22760367,72632.0,72631.0,0.3608]
[1730219796579,0.15875367,72632.0,72627.0,0.0543457]
[1730219796775,0.22760767,72628.0,72626.0,0.04076424]
[1730219797086,0.22760767,72628.0,72625.0,0.0521687]
[1730219797281,0.068856,72626.0,72624.0,0.04076424]
[1730219797576,0.068858,72624.0,72622.0,0.04076503]
[1730219797982,0.068858,72624.0,72621.0,0.04076503]
[1730219798685,0.069858,72624.0,72622.0,0.008]
[1730219798882,0.069858,72624.0,72619.0,0.36689197]
[1730219798883,0.07598339,72623.0,72619.0,0.36689197]
[1730219799193,0.07598339,72622.0,72619.0,0.36689197]
[1730219799486,0.03371896,72621.0,72619.0,0.36689197]
[1730219799678,0.069858,72624.0,72619.0,0.36689197]
[1730219799679,0.03371896,72620.0,72619.0,0.36689197]
[1730219799878,0.068861,72620.0,72619.0,0.36689197]
[1730219800077,0.068861,72620.0,72613.0,0.15875367]
[1730219800078,0.068864,72617.0,72611.0,0.266469]
[1730219800278,0.068864,72617.0,72604.0,0.43179558]
[1730219800279,0.06887,72611.0,72604.0,0.43179558]
[1730219800579,0.03371896,72610.0,72606.0,0.068874]
[1730219800777,0.03371896,72609.0,72606.0,0.068874]
[1730219800979,0.03371896,72608.0,72606.0,0.068874]
[1730219801176,0.03371896,72607.0,72606.0,0.068874]
[1730219801371,0.03371896,72607.0,72604.0,0.43179558]
[1730219801575,0.068876,72605.0,72604.0,0.44300211]
[1730219801885,0.10259496,72605.0,72604.0,0.44300211]
[1730219802084,0.10256054,72605.0,72604.0,0.00206558]
[1730219802480,0.10256054,72605.0,72604.0,0.01606558]
[1730219802787,0.03372454,72605.0,72604.0,0.01606558]
[1730219802983,0.10360054,72605.0,72604.0,0.02106558]
[1730219803180,0.10460054,72605.0,72604.0,0.08999558]
[1730219803588,0.03572454,72605.0,72604.0,0.15887258]
[1730219803883,0.03572454,72605.0,72604.0,0.08999558]
[1730219804186,0.03572454,72605.0,72604.0,0.02106558]
[1730219804187,0.03572615,72605.0,72604.0,0.02106558]
[1730219804584,0.03568615,72605.0,72604.0,0.02106558]
[1730219804778,0.00196,72605.0,72604.0,0.60949625]
[1730219805187,0.00096,72605.0,72604.0,0.59549625]
[1730219805382,0.00096,72605.0,72604.0,0.60049625]
[1730219805585,0.3608,72614.0,72605.0,0.068875]
[1730219805788,0.068869,72612.0,72605.0,0.068875]
[1730219805983,0.068869,72612.0,72604.0,0.52641925]
[1730219805984,0.068871,72610.0,72604.0,0.17661925]
[1730219806285,0.07600094,72609.0,72604.0,0.17181925]
[1730219806488,0.001,72605.0,72604.0,0.17181925]
[1730219806685,0.001,72605.0,72604.0,0.24069625]
[1730219806887,0.02063149,72613.0,72608.0,0.068873]
[1730219807079,0.068869,72612.0,72609.0,0.22370935]
[1730219807275,0.27221606,72614.0,72610.0,0.22370935]
[1730219807276,0.068871,72611.0,72610.0,0.22370935]
[1730219807676,0.068871,72611.0,72610.0,0.10205897]
[1730219808787,0.068871,72611.0,72610.0,0.183577]
[1730219809188,0.068871,72611.0,72610.0,0.10205897]
[1730219809390,0.068871,72611.0,72610.0,0.10605897]
[1730219809581,0.068871,72611.0,72610.0,0.19260927]
[1730219809983,0.068831,72611.0,72610.0,0.19261676]
[1730219810284,0.068831,72611.0,72610.0,0.11105897]
[1730219811086,0.068831,72611.0,72610.0,0.10605897]
[1730219811290,0.071831,72611.0,72610.0,0.10605897]
[1730219811489,0.071831,72611.0,72610.0,0.10205897]
[1730219811793,0.075831,72611.0,72610.0,0.10205897]
[1730219812180,0.075831,72611.0,72610.0,0.18361676]
[1730219812589,0.072831,72611.0,72610.0,0.10205897]
[1730219812791,0.068876,72605.0,72604.0,0.00206558]
[1730219812981,0.17473385,72605.0,72604.0,0.00206558]
[1730219813184,0.2805917,72605.0,72596.0,0.3608]
[1730219813390,0.068882,72598.0,72597.0,0.1198703]
[1730219813695,0.17473985,72598.0,72597.0,0.1198703]
[1730219813892,0.17469985,72598.0,72597.0,0.1198703]
[1730219814092,0.17469985,72598.0,72591.0,0.09522094]
[1730219814298,0.17469985,72598.0,72589.0,0.36286639]
[1730219814299,0.068887,72593.0,72592.0,0.11990188]
[1730219814594,0.17474485,72593.0,72592.0,0.11990188]
[1730219814782,0.06889,72590.0,72589.0,0.00206639]
[1730219814985,0.06885,72590.0,72589.0,0.00206639]
[1730219816088,0.06985,72590.0,72589.0,0.00706639]
[1730219816291,0.06985,72590.0,72589.0,0.005]
[1730219816490,0.10358938,72590.0,72589.0,0.005]
[1730219817086,0.07081,72590.0,72589.0,0.016]
[1730219817690,0.06981,72590.0,72589.0,0.006]
[1730219818091,0.06881,72590.0,72589.0,0.001]
[1730219821199,0.068904,72575.0,72574.0,0.00206676]
[1730219822094,0.10585785,72579.0,72574.0,0.00206676]
[1730219822400,0.10585785,72579.0,72578.0,0.06793713]
[1730219822401,0.0689,72579.0,72578.0,0.06793713]
[1730219822986,0.3608,72581.0,72577.0,0.068902]
[1730219823187,0.3608,72581.0,72579.0,0.1588542]
[1730219823398,0.3608,72581.0,72580.0,0.068899]
[1730219823898,0.3608,72581.0,72577.0,0.068902]
[1730219824202,0.001,72579.0,72577.0,0.068902]
[1730219824600,0.068901,72578.0,72574.0,0.17392096]
[1730219824796,0.068901,72578.0,72577.0,0.001]
[1730219825500,0.001,72579.0,72574.0,0.01406676]
[1730219825698,0.068902,72577.0,72574.0,0.01406676]
[1730219825892,0.068902,72577.0,72574.0,0.00206676]
[1730219826904,0.068904,72575.0,72574.0,0.00206676]
[1730219827094,0.429704,72575.0,72574.0,0.00206676]
[1730219827289,0.3608,72575.0,72574.0,0.00206676]
[1730219827508,0.429704,72575.0,72574.0,0.00206676]
[1730219827693,0.429704,72575.0,72574.0,0.01406676]
[1730219828095,0.5885582,72575.0,72574.0,0.01506676]
[1730219828798,0.60074308,72575.0,72574.0,0.01506676]
[1730219829295,0.60174308,72575.0,72574.0,0.01506676]
[1730219830193,0.60074308,72575.0,72574.0,0.00306676]
[1730219830490,0.60074308,72575.0,72574.0,0.00806676]
[1730219830800,1.01410308,72575.0,72574.0,0.006]
[1730219830999,1.01310308,72575.0,72574.0,0.006]
[1730219831303,0.44088888,72575.0,72574.0,0.006]
[1730219831605,0.85424888,72575.0,72574.0,0.006]
[1730219832102,0.44088888,72575.0,72574.0,0.006]
[1730219834800,0.429704,72575.0,72574.0,0.006]
[1730219835016,0.429704,72575.0,72574.0,0.074905]
[1730219836100,0.429704,72575.0,72574.0,0.11571213]
[1730219836494,0.3608,72575.0,72574.0,0.074905]
[1730219837000,0.1931,72585.0,72574.0,0.10726248]
[1730219837201,0.1588542,72578.0,72575.0,0.10126248]
[1730219837405,0.068902,72577.0,72576.0,0.06795311]
[1730219837607,0.068902,72577.0,72576.0,0.16914668]
[1730219838004,0.068902,72577.0,72576.0,0.06795311]
[1730219838208,0.37416456,72581.0,72576.0,0.10083908]
[1730219838401,0.37416456,72581.0,72577.0,0.1688217]
[1730219838610,0.068901,72578.0,72577.0,0.06798024]
[1730219838811,0.068901,72578.0,72577.0,0.10084174]
[1730219839813,0.068901,72578.0,72577.0,0.10284174]
[1730219840111,0.2277552,72578.0,72577.0,0.10284174]
[1730219840497,0.2277552,72578.0,72577.0,0.18438973]
[1730219840702,0.2277552,72578.0,72577.0,0.10384174]
[1730219841209,0.2277552,72578.0,72577.0,0.1719217]
[1730219841411,0.2277552,72578.0,72577.0,0.07107996]
[1730219841808,0.2277552,72578.0,72577.0,0.17227131]
[1730219842415,0.2277552,72578.0,72577.0,0.10419135]
[1730219843514,0.2327552,72578.0,72577.0,0.10219135]
[1730219843708,0.2357552,72578.0,72577.0,0.10119135]
[1730219843908,0.6491152,72578.0,72577.0,0.10119135]
[1730219844407,0.487261,72578.0,72577.0,0.10119135]
[1730219844602,0.59617379,72578.0,72577.0,0.10119135]
[1730219844802,0.18281379,72578.0,72577.0,0.10119135]
[1730219845115,0.18281379,72578.0,72577.0,0.10143087]
[1730219845116,0.17981379,72578.0,72577.0,0.10143087]
[1730219845318,0.18181379,72578.0,72577.0,0.10143087]
[1730219845613,0.17981379,72578.0,72577.0,0.10143087]
[1730219845810,0.18281379,72578.0,72577.0,0.10143087]
[1730219846306,0.18281379,72578.0,72577.0,0.18297886]
[1730219846307,0.17981379,72578.0,72577.0,0.18297886]
[1730219846510,0.18481379,72578.0,72577.0,0.18297886]
[1730219846715,0.17981379,72578.0,72577.0,0.18297886]
[1730219846917,0.18281379,72578.0,72577.0,0.18297886]
[1730219847510,0.17981379,72578.0,72577.0,0.18297886]
[1730219847714,0.18181379,72578.0,72577.0,0.18297886]
[1730219848112,0.18181379,72578.0,72577.0,0.18323032]
[1730219848308,0.18181379,72578.0,72577.0,0.10143087]
[1730219848513,0.17881379,72578.0,72577.0,0.10143087]
[1730219849608,0.072901,72578.0,72577.0,0.1704408]
[1730219849808,0.072901,72578.0,72577.0,0.2914168]
[1730219849809,0.10991279,72578.0,72577.0,0.2914168]
[1730219850914,0.17881379,72578.0,72577.0,0.2914168]
[1730219851512,0.17881379,72578.0,72577.0,0.1704408]
[1730219852012,0.17881379,72578.0,72577.0,0.068902]
[1730219852810,0.068905,72574.0,72573.0,0.068905]
[1730219853012,0.429705,72574.0,72573.0,0.068905]
[1730219855617,0.429705,72574.0,72573.0,0.070905]
[1730219856320,0.3608,72574.0,72573.0,0.070905]
[1730219857219,0.3608,72574.0,72573.0,0.59017779]
[1730219857414,0.3608,72581.0,72580.0,0.068899]
[1730219857621,0.3608,72581.0,72580.0,0.17481179]
[1730219857835,0.3608,72588.0,72587.0,0.068893]
[1730219858033,0.3608,72588.0,72587.0,0.17480579]
[1730219858235,0.068887,72593.0,72589.0,0.068891]
[1730219858735,0.068889,72591.0,72588.0,0.3925]
[1730219858935,0.068889,72591.0,72588.0,0.461391]
[1730219859435,0.46671279,72596.0,72588.0,0.3925]
[1730219859629,0.068886,72595.0,72589.0,0.068891]
[1730219859824,0.00706729,72590.0,72589.0,0.068891]
[1730219860027,0.00706729,72590.0,72588.0,0.3925]
[1730219860227,0.00706729,72590.0,72589.0,0.16939932]
[1730219860629,0.01206729,72590.0,72589.0,0.23829032]
[1730219861130,0.01206729,72590.0,72589.0,0.068891]
[1730219861533,0.01206729,72590.0,72589.0,0.23837612]
[1730219862033,0.01206729,72590.0,72589.0,0.17014571]
[1730219862536,0.01206729,72590.0,72589.0,0.58342571]
[1730219862737,0.00206729,72590.0,72589.0,0.58342571]
[1730219862943,0.01206729,72590.0,72589.0,0.58342571]
[1730219863537,0.01206729,72590.0,72589.0,0.17014571]
[1730219863538,0.00706729,72590.0,72589.0,0.17014571]
[1730219863724,0.01206729,72590.0,72589.0,0.17014571]
[1730219864830,0.01206729,72590.0,72589.0,0.23827124]
[1730219865132,0.01206729,72590.0,72589.0,0.13701653]
[1730219865533,0.01206729,72590.0,72589.0,0.49781653]
[1730219866135,0.01206729,72590.0,72589.0,0.3608]
[1730219866136,0.01,72590.0,72589.0,0.3608]
[1730219867241,0.04373437,72590.0,72588.0,0.462191]